bitfinex-derivatives/quotes_SOLF0:USTF0_20241103
["timestamp","ask_amount","ask_price","bid_price","bid_amount"]
[1730631833980,1.3036,163.99,163.83,50.15482329]
[1730631836678,1.3036,163.99,163.83,53.03482329]
[1730631839688,1.3036,163.99,163.83,50.15482329]
[1730631839890,1.3036,163.99,163.83,53.03482329]
[1730631840789,1.2821,164.02,163.83,53.03482329]
[1730631840987,2.88,164.01,163.83,53.03482329]
[1730631855995,2.88,164.01,163.84,2.88]
[1730631856393,1.02405566,164.0,163.84,2.88]
[1730631858298,1.02405566,164.0,163.83,50.15482329]
[1730631858490,19.6166,163.99,163.83,50.15482329]
[1730631858695,1.02405566,163.98,163.83,50.15482329]
[1730631858885,2.88,163.97,163.83,50.15482329]
[1730631859701,1.0242719,163.96,163.83,50.15482329]
[1730631860496,21.16,163.97,163.83,50.15482329]
[1730631860690,1.02427505,163.96,163.83,50.15482329]
[1730631860896,1.02427505,163.96,163.8,3.9625]
[1730631861201,2.33007505,163.96,163.8,3.9625]
[1730631861399,1.02427505,163.95,163.8,3.9625]
[1730631861598,1.3058,163.96,163.8,3.9625]
[1730631861796,1.02422927,163.95,163.8,3.9625]
[1730631862595,2.88,163.97,163.8,3.9625]
[1730631862902,1.02426008,163.96,163.8,3.9625]
[1730631863599,2.88,163.97,163.8,3.9625]
[1730631864001,2.6624,163.99,163.8,3.9625]
[1730631864198,3.90418444,163.98,163.8,3.9625]
[1730631864399,2.88,163.98,163.81,2.84905144]
[1730631865202,1.02398279,163.97,163.81,2.84905144]
[1730631866206,2.88,163.98,163.81,2.84905144]
[1730631866509,42.24164932,163.97,163.81,2.84905144]
[1730631866711,41.21764342,163.97,163.81,2.84905144]
[1730631867104,41.21764342,163.97,163.8,3.9625]
[1730631867304,59.49764342,163.97,163.8,3.9625]
[1730631868393,1.02404326,163.96,163.8,3.9625]
[1730631871110,41.21764342,163.97,163.8,3.9625]
[1730631872714,2.88,163.96,163.8,3.9625]
[1730631872904,41.21764342,163.97,163.8,3.9625]
[1730631873112,2.88,163.96,163.8,3.9625]
[1730631881119,41.21764342,163.97,163.8,3.9625]
[1730631881318,44.03764342,163.97,163.8,3.9625]
[1730631884719,2.6176,164.04,163.8,3.9625]
[1730631884927,2.82,164.03,163.81,1.12165941]
[1730631885110,85.1333284,164.07,163.82,2.82]
[1730631885424,2.82,164.06,163.83,1.12165941]
[1730631886220,2.82,164.06,163.83,2.12165941]
[1730631886420,2.82,164.06,163.84,1.12165941]
[1730631887027,2.82,164.06,163.85,2.12165941]
[1730631887326,2.82,164.06,163.86,7.88845941]
[1730631887622,2.82,164.06,163.86,6.7668]
[1730631888019,2.82,164.06,163.86,9.88270856]
[1730631888822,85.1333284,164.07,163.87,1.12124018]
[1730631889034,2.82,164.06,163.87,1.12124018]
[1730631889222,2.82,164.06,163.87,1.0]
[1730631889626,85.1333284,164.07,163.87,1.0]
[1730631889627,41.1933284,164.07,163.88,1.12117202]
[1730631889830,18.28,164.16,163.87,1.0]
[1730631889831,2.82,164.06,163.87,1.0]
[1730631890031,11.47617632,164.15,163.88,1.12109983]
[1730631890324,1.0231772,164.13,163.89,2.12109983]
[1730631890528,3.8431772,164.13,163.9,3.94109983]
[1730631890728,2.82,164.13,163.91,1.12109983]
[1730631891117,2.82,164.13,163.91,2.12109983]
[1730631891327,1.32,164.16,163.92,1.12109983]
[1730631891634,2.82,164.15,163.93,4.0375]
[1730631891824,2.82,164.15,163.94,2.82]
[1730631892027,43.92,164.18,163.94,3.94085601]
[1730631892222,2.82,164.17,163.94,3.94085601]
[1730631892424,1.02294796,164.16,163.94,3.94085601]
[1730631892630,1.02294796,164.16,163.95,1.0]
[1730631892933,2.82,164.17,163.94,3.94085601]
[1730631893236,1.0229054,164.16,163.94,3.94085601]
[1730631893435,2.82,164.17,163.94,3.94085601]
[1730631893738,1.02290143,164.16,163.94,3.94085601]
[1730631894739,1.02290143,164.16,163.94,2.82]
[1730631895425,1.02290143,164.16,163.95,2.82]
[1730631895636,1.02290143,164.16,163.95,5.94179182]
[1730631896438,0.95406353,164.16,163.95,5.94179182]
[1730631897139,2.82,164.17,163.95,5.94179182]
[1730631898832,1.0234313,164.16,163.96,2.82]
[1730631899635,1.0234313,164.16,163.96,5.82485776]
[1730631900839,2.82,164.17,163.96,5.82485776]
[1730631901039,1.02343646,164.16,163.96,5.82485776]
[1730631901337,2.82,164.17,163.96,5.82485776]
[1730631902331,1.02340701,164.16,163.96,3.00485776]
[1730631902531,1.02340701,164.16,163.97,2.82]
[1730631903335,2.82,164.17,163.97,2.82]
[1730631906344,1.0228521,164.16,163.97,2.82]
[1730631906846,2.82,164.17,163.97,2.82]
[1730631909045,1.02286432,164.16,163.98,2.8]
[1730631911349,1.02286432,164.16,163.99,2.6034]
[1730631912639,1.02292668,164.15,163.99,2.6034]
[1730631912842,1.02295199,164.15,163.99,2.6034]
[1730631913953,1.02298557,164.14,163.93,1.337]
[1730631914142,1.02298557,164.14,163.94,2.8]
[1730631914143,2.8,164.13,163.94,2.8]
[1730631914446,4.1543,164.13,163.94,2.8]
[1730631914757,1.3391,164.12,163.94,2.8]
[1730631914962,2.6701,164.12,163.94,2.8]
[1730631916848,2.6701,164.12,163.95,3.08824169]
[1730631917052,2.8,164.11,163.94,2.8]
[1730631925160,2.6701,164.12,163.94,2.8]
[1730631925357,2.8,164.1,163.94,2.8]
[1730631926761,2.8,164.1,163.95,2.8]
[1730631926961,2.8,164.1,163.94,2.8]
[1730631931963,2.8,164.09,163.94,2.8]
[1730631932568,2.8,164.09,163.95,1.12063192]
[1730631932751,2.6701,164.12,163.95,4.20490885]
[1730631933061,2.6701,164.12,163.96,3.68703845]
[1730631933062,5.4701,164.12,163.96,3.68703845]
[1730631933250,5.4701,164.12,163.96,2.5665]
[1730631934765,2.8,164.12,163.96,2.5665]
[1730631934965,18.31,164.24,163.97,1.12052233]
[1730631934966,2.8,164.14,163.97,1.12052233]
[1730631935157,2.8,164.14,163.98,2.8]
[1730631935561,2.8,164.14,163.99,1.341]
[1730631944971,2.8,164.14,164.0,2.8]
[1730631945177,2.8,164.14,164.0,54.03140161]
[1730631947278,4.0314,164.17,164.0,54.03140161]
[1730631947577,2.8,164.16,164.0,54.03140161]
[1730631952966,4.0314,164.17,164.0,54.03140161]
[1730631953170,2.8,164.16,164.0,54.03140161]
[1730631962773,41.15921312,164.19,164.0,54.03140161]
[1730631962971,41.15921312,164.19,164.01,1.12027579]
[1730631962972,43.95921312,164.19,164.01,1.12027579]
[1730631963183,43.95921312,164.19,164.01,2.12027579]
[1730631963388,43.95921312,164.19,164.02,2.7025]
[1730631964191,41.15921312,164.19,164.02,2.7025]
[1730631964796,41.15921312,164.19,164.03,1.0]
[1730631964993,41.15921312,164.19,164.04,2.8]
[1730631965596,41.15921312,164.19,164.05,1.3135]
[1730631966495,41.15921312,164.19,164.05,4.39727946]
[1730631968390,2.8,164.21,164.05,4.39727946]
[1730631972202,4.1551,164.23,164.05,4.39727946]
[1730631973996,18.31,164.33,164.05,4.39727946]
[1730631974196,1.3186,164.29,164.05,4.39727946]
[1730631974398,3.80230392,164.28,164.05,4.39727946]
[1730631974593,1.02230392,164.27,164.06,1.0]
[1730631974999,2.6396,164.26,164.06,1.0]
[1730631978313,2.6396,164.26,164.07,1.11991486]
[1730631978510,2.6396,164.26,164.08,2.78]
[1730631978708,2.6396,164.26,164.09,1.2923]
[1730631979713,2.6396,164.26,164.1,3.96149164]
[1730631979911,2.6396,164.26,164.11,3.96149164]
[1730631980211,2.6396,164.26,164.12,8.10419164]
[1730631980412,2.6396,164.26,164.13,3.96149164]
[1730631980607,2.6396,164.26,164.12,4.1427]
[1730631980912,2.6396,164.26,164.14,3.96149067]
[1730631981111,2.6396,164.26,164.15,1.2847]
[1730631981410,2.6396,164.26,164.16,4.30365044]
[1730631981605,2.6396,164.26,164.16,2.78]
[1730631982211,2.6396,164.26,164.16,5.89402752]
[1730631982414,2.6396,164.26,164.16,2.78]
[1730631982999,2.6396,164.26,164.17,1.52365026]
[1730631983203,2.6396,164.26,164.18,1.52365026]
[1730631983417,2.6396,164.26,164.17,1.52365026]
[1730631983621,2.6396,164.26,164.18,1.52365026]
[1730631983915,2.6396,164.26,164.17,1.52365026]
[1730631984212,2.6396,164.26,164.18,1.52365026]
[1730631984409,2.6396,164.26,164.16,5.80459484]
[1730631984612,2.6396,164.26,164.17,1.52335331]
[1730631984815,2.6396,164.26,164.18,1.52335331]
[1730631985011,2.6396,164.26,164.17,1.52335331]
[1730631985212,2.6396,164.26,164.16,5.80459484]
[1730631985412,2.6396,164.26,164.17,1.52337403]
[1730631985607,2.6396,164.26,164.16,5.80459484]
[1730631985804,4.0986,164.29,164.17,1.52337198]
[1730631986009,4.0986,164.29,164.18,2.84987198]
[1730631986210,1.3186,164.29,164.18,1.3265]
[1730631986525,1.3186,164.29,164.19,1.52337198]
[1730631986707,1.3186,164.29,164.2,2.78]
[1730631992121,2.6577,164.35,164.2,2.78]
[1730631992122,2.78,164.33,164.2,2.78]
[1730631992324,4.0137,164.35,164.21,4.24574288]
[1730631992528,2.78,164.38,164.21,4.24574288]
[1730631992825,100.52826899,164.41,164.22,3.96043149]
[1730631992826,3.8807,164.4,164.22,3.96043149]
[1730631993027,6.6607,164.4,164.23,3.96043149]
[1730631993325,6.6607,164.4,164.24,4.30324288]
[1730631993511,6.6607,164.4,164.25,2.87704288]
[1730631993711,6.6607,164.4,164.26,1.52324288]
[1730631993915,6.6607,164.4,164.27,1.52324288]
[1730631994112,6.6607,164.4,164.28,2.78]
[1730631994319,6.6607,164.4,164.28,8.31782274]
[1730631994528,6.6607,164.4,164.28,5.3472]
[1730631995135,6.6607,164.4,164.28,8.32300017]
[1730631995422,5.4073,164.4,164.28,8.32300017]
[1730631995618,1.2915,164.46,164.28,8.32300017]
[1730631995820,1.02100498,164.45,164.29,1.52239831]
[1730631996016,2.78,164.45,164.29,1.52239831]
[1730631997115,2.78,164.45,164.3,1.52239831]
[1730631997322,2.78,164.45,164.31,1.52239831]
[1730631997513,2.78,164.45,164.32,4.1319]
[1730631998714,3.9342,164.46,164.32,4.1319]
[1730631998715,1.3576,164.46,164.32,4.1319]
[1730631998916,1.3576,164.46,164.33,1.52194726]
[1730631999117,1.3576,164.46,164.34,1.52194726]
[1730631999312,1.3576,164.46,164.35,1.2836]
[1730631999516,1.3576,164.46,164.36,4.0647]
[1730632000227,2.78,164.49,164.36,4.0647]
[1730632001126,2.78,164.5,164.36,4.0647]
[1730632003426,2.6053,164.49,164.36,4.0647]
[1730632006736,1.2965,164.48,164.36,4.0647]
[1730632006932,2.6053,164.49,164.36,4.0647]
[1730632007633,1.2965,164.52,164.36,4.0647]
[1730632008040,1.2965,164.52,164.37,1.0]
[1730632008537,2.6682,164.54,164.38,1.11784268]
[1730632008735,2.6682,164.54,164.39,1.364]
[1730632008938,2.6682,164.54,164.4,3.89784268]
[1730632009129,2.6682,164.54,164.4,2.78]
[1730632009735,1.3846,164.54,164.41,2.11771933]
[1730632009935,1.3846,164.54,164.41,1.0]
[1730632010135,1.3846,164.54,164.42,1.3049]
[1730632010536,1.3846,164.54,164.43,1.3501]
[1730632010738,1.3846,164.54,164.44,2.78]
[1730632013248,1.3846,164.54,164.43,1.3501]
[1730632013544,1.3165,164.53,164.44,2.78]
[1730632017144,1.3165,164.53,164.4,1.3255]
[1730632017343,1.3165,164.53,164.41,2.78]
[1730632017747,1.3165,164.53,164.4,1.3255]
[1730632018041,1.3165,164.53,164.41,2.78]
[1730632020833,1.3165,164.53,164.4,1.3255]
[1730632021038,1.3165,164.53,164.41,2.78]
[1730632024252,1.3165,164.53,164.4,1.3255]
[1730632024449,1.3165,164.53,164.41,2.78]
[1730632027949,1.3165,164.53,164.42,2.78]
[1730632029955,2.78,164.52,164.42,2.78]
[1730632032460,2.78,164.52,164.4,1.3255]
[1730632032656,1.2627,164.51,164.41,2.78]
[1730632035254,1.2627,164.51,164.34,1.2846]
[1730632035443,1.2627,164.51,164.38,2.78]
[1730632036150,1.2627,164.51,164.38,5.83594843]
[1730632037455,1.2627,164.51,164.35,2.6979]
[1730632037658,1.2627,164.51,164.37,2.78]
[1730632038758,1.2627,164.51,164.38,2.9826519]
[1730632039554,1.2627,164.51,164.37,2.78]
[1730632040153,1.2627,164.51,164.37,5.78485375]
[1730632040360,1.2627,164.51,164.37,2.78]
[1730632040981,1.2627,164.51,164.37,5.78290342]
[1730632041263,1.2627,164.51,164.37,2.78]
[1730632042667,1.2627,164.51,164.36,2.78]
[1730632044767,2.78,164.5,164.36,2.78]
[1730632045859,2.78,164.5,164.37,3.08133285]
[1730632046468,2.78,164.5,164.36,2.78]
[1730632047474,2.78,164.5,164.37,3.05905768]
[1730632050169,2.78,164.5,164.36,2.78]
[1730632053876,2.78,164.5,164.35,2.6979]
[1730632054177,2.78,164.5,164.34,4.0646]
[1730632055072,1.02051255,164.49,164.33,51.13036294]
[1730632055571,1.3566,164.48,164.33,51.13036294]
[1730632055977,1.2529,164.47,164.33,51.13036294]
[1730632056177,2.78,164.46,164.33,51.13036294]
[1730632056666,1.2797,164.45,164.33,51.13036294]
[1730632076681,1.2797,164.45,164.3,4.1101]
[1730632077079,1.2797,164.45,164.3,1.2901]
[1730632077582,18.31,164.43,164.3,1.2901]
[1730632077782,2.82,164.42,164.3,1.2901]
[1730632078981,41.09972477,164.44,164.3,1.2901]
[1730632079178,2.82,164.43,164.3,1.2901]
[1730632081377,41.09972477,164.44,164.3,1.2901]
[1730632081886,2.82,164.43,164.3,1.2901]
[1730632086088,2.82,164.42,164.3,1.2901]
[1730632086883,2.82,164.42,164.3,4.1101]
[1730632087692,2.82,164.42,164.3,1.2901]
[1730632095390,2.6075,164.41,164.3,1.2901]
[1730632097892,2.82,164.42,164.3,1.2901]
[1730632110903,2.78,164.41,164.3,1.2901]
[1730632124707,2.78,164.41,164.17,2.6289]
[1730632125015,2.78,164.41,164.18,3.8987462]
[1730632125215,2.78,164.41,164.19,1.1187462]
[1730632125513,2.78,164.41,164.18,5.78972796]
[1730632125514,2.78,164.41,164.2,1.11879401]
[1730632125715,2.78,164.41,164.21,53.9440538]
[1730632126616,2.78,164.41,164.21,57.05667324]
[1730632129110,21.09,164.41,164.21,57.05667324]
[1730632130118,2.78,164.41,164.21,57.05667324]
[1730632131815,18.31,164.39,164.21,57.05667324]
[1730632132020,1.3647,164.38,164.21,57.05667324]
[1730632132415,2.7098,164.37,164.21,57.05667324]
[1730632132616,2.78,164.36,164.21,57.05667324]
[1730632133114,2.78,164.36,164.21,54.27667324]
[1730632134319,2.7098,164.37,164.21,54.27667324]
[1730632134622,2.78,164.36,164.21,54.27667324]
[1730632136921,2.7098,164.37,164.21,54.27667324]
[1730632137121,2.78,164.35,164.21,54.27667324]
[1730632142223,2.5738,164.42,164.21,54.27667324]
[1730632142426,18.31,164.4,164.21,54.27667324]
[1730632143515,2.78,164.41,164.21,54.27667324]
[1730632147620,2.78,164.4,164.21,54.27667324]
[1730632148228,2.5738,164.42,164.21,54.27667324]
[1730632148733,2.78,164.41,164.22,1.11868642]
[1730632149234,2.78,164.41,164.23,4.0039]
[1730632149421,2.78,164.41,164.24,2.78]
[1730632149726,2.78,164.4,164.24,2.78]
[1730632152231,2.78,164.4,164.25,1.11851472]
[1730632152436,2.78,164.4,164.24,2.78]
[1730632152625,2.78,164.4,164.25,1.11851474]
[1730632153231,2.78,164.4,164.24,2.78]
[1730632154830,41.09972477,164.44,164.24,2.78]
[1730632155031,2.78,164.43,164.24,2.78]
[1730632155729,2.78,164.43,164.25,1.11853055]
[1730632159535,2.78,164.43,164.24,2.78]
[1730632159832,2.78,164.43,164.25,1.11853055]
[1730632160025,2.78,164.43,164.24,2.78]
[1730632161030,2.78,164.43,164.25,1.11853205]
[1730632161337,41.09972477,164.44,164.25,1.11853205]
[1730632161724,2.78,164.43,164.25,1.11853205]
[1730632161929,2.78,164.43,164.26,1.0]
[1730632162124,2.78,164.43,164.27,1.11853205]
[1730632162337,2.78,164.43,164.28,2.78]
[1730632162534,2.78,164.43,164.29,2.5367]
[1730632162738,43.87972477,164.44,164.29,3.8173]
[1730632167232,2.78,164.44,164.29,3.8173]
[1730632174238,2.78,164.44,164.3,2.78]
[1730632174542,2.78,164.44,164.3,5.76587024]
[1730632177850,2.78,164.44,164.3,2.78]
[1730632179845,2.78,164.44,164.29,3.8173]
[1730632190159,2.78,164.44,164.3,3.04345155]
[1730632191559,2.78,164.44,164.29,3.8173]
[1730632200477,2.78,164.43,164.29,3.8173]
[1730632202080,3.8561,164.46,164.29,3.8173]
[1730632202283,2.78,164.45,164.29,3.8173]
[1730632206178,2.78,164.45,164.3,3.06698625]
[1730632206378,2.78,164.45,164.29,3.8173]
[1730632206773,18.31,164.44,164.21,54.27667324]
[1730632206977,18.31,164.44,164.22,7.8362574]
[1730632207188,18.31,164.44,164.23,1.1185574]
[1730632207988,18.31,164.43,164.23,1.1185574]
[1730632209178,21.09,164.45,164.23,1.1185574]
[1730632209482,24.17941242,164.45,164.23,1.1185574]
[1730632210291,24.17941242,164.45,164.22,6.7177]
[1730632210483,24.17941242,164.45,164.23,1.1186182]
[1730632212877,1.02076153,164.44,164.22,3.9377]
[1730632213073,1.02076153,164.44,164.23,2.78]
[1730632213292,24.17941242,164.45,164.23,2.78]
[1730632213483,1.02077741,164.44,164.23,2.78]
[1730632214293,1.0207902,164.43,164.23,2.78]
[1730632214492,24.17941242,164.45,164.23,2.78]
[1730632214795,1.02080055,164.44,164.22,6.7177]
[1730632215290,1.02080055,164.44,164.22,1.2978]
[1730632215485,18.31,164.43,164.22,1.2978]
[1730632215885,1.02081358,164.42,164.22,1.2978]
[1730632216086,2.78,164.41,164.22,1.2978]
[1730632216583,18.31,164.39,164.22,1.2978]
[1730632217585,18.31,164.39,164.22,3.8847]
[1730632217784,2.78,164.38,164.22,3.8847]
[1730632218098,2.78,164.37,164.22,3.8847]
[1730632218394,18.31,164.39,164.22,3.8847]
[1730632218395,2.78,164.36,164.22,3.8847]
[1730632218597,2.78,164.35,164.22,3.8847]
[1730632218790,18.31,164.39,164.22,3.8847]
[1730632219089,2.78,164.38,164.22,3.8847]
[1730632219290,2.78,164.37,164.22,3.8847]
[1730632219490,18.31,164.39,164.22,3.8847]
[1730632219696,2.78,164.36,164.22,3.8847]
[1730632220082,18.31,164.39,164.22,3.8847]
[1730632220282,2.78,164.38,164.22,3.8847]
[1730632221182,2.78,164.37,164.22,3.8847]
[1730632221580,4.0198,164.4,164.22,3.8847]
[1730632222186,2.78,164.39,164.22,3.8847]
[1730632223485,4.0198,164.4,164.22,3.8847]
[1730632223691,2.78,164.39,164.22,3.8847]
[1730632224093,2.78,164.39,164.23,1.11866498]
[1730632224293,2.78,164.39,164.24,2.78]
[1730632231682,4.0198,164.4,164.24,2.78]
[1730632231889,2.78,164.38,164.24,2.78]
[1730632232395,4.0198,164.4,164.24,2.78]
[1730632232599,2.78,164.39,164.24,2.78]
[1730632232898,4.0198,164.4,164.24,2.78]
[1730632233098,2.78,164.39,164.24,2.78]
[1730632233895,4.0198,164.4,164.24,2.78]
[1730632234093,2.78,164.39,164.24,2.78]
[1730632235397,2.78,164.38,164.24,2.78]
[1730632250715,2.6878,164.4,164.25,1.11858229]
[1730632251013,18.28,164.48,164.25,1.11858229]
[1730632251014,2.78,164.41,164.25,52.26386526]
[1730632251214,2.78,164.41,164.25,51.14528297]
[1730632252714,2.78,164.41,164.26,1.1185617]
[1730632252900,3.9597,164.47,164.26,1.1185617]
[1730632253100,2.78,164.46,164.26,1.1185617]
[1730632253511,3.9597,164.47,164.26,1.1185617]
[1730632253816,2.78,164.46,164.26,1.1185617]
[1730632254011,2.78,164.46,164.27,1.0]
[1730632254220,2.78,164.46,164.28,4.036]
[1730632254514,2.78,164.46,164.29,1.11827662]
[1730632254902,2.78,164.46,164.29,1.0]
[1730632257006,2.78,164.46,164.3,2.78]
[1730632259117,2.78,164.46,164.28,6.88102889]
[1730632259314,2.78,164.46,164.29,2.78]
[1730632260116,2.78,164.46,164.28,6.88102889]
[1730632260415,3.9597,164.47,164.29,2.78]
[1730632260617,2.78,164.46,164.29,2.78]
[1730632260822,2.78,164.45,164.29,2.78]
[1730632261027,3.9597,164.47,164.3,1.11820928]
[1730632261217,2.78,164.46,164.29,2.78]
[1730632261517,6.7397,164.47,164.3,2.11813504]
[1730632261826,6.7397,164.47,164.31,1.11813504]
[1730632262725,5.4823,164.47,164.31,1.11813504]
[1730632262918,43.86844882,164.49,164.31,1.11813504]
[1730632263118,43.86844882,164.49,164.32,2.11813504]
[1730632263327,43.86844882,164.49,164.33,3.89813504]
[1730632263526,43.86844882,164.49,164.33,2.78]
[1730632263732,43.86844882,164.49,164.34,3.9571]
[1730632264119,41.08844882,164.49,164.34,3.9571]
[1730632264427,2.78,164.51,164.34,3.9571]
[1730632270028,4.1209,164.54,164.34,3.9571]
[1730632270227,2.78,164.53,164.34,3.9571]
[1730632270628,2.78,164.53,164.35,1.0]
[1730632274640,2.78,164.53,164.36,2.78]
[1730632281342,4.1209,164.54,164.36,2.78]
[1730632281535,2.78,164.52,164.36,2.78]
[1730632283640,2.78,164.52,164.35,1.0]
[1730632283836,2.78,164.52,164.36,2.78]
[1730632287143,2.78,164.52,164.35,1.0]
[1730632287342,2.78,164.52,164.37,2.78]
[1730632288139,2.78,164.52,164.37,5.82640136]
[1730632289848,2.78,164.52,164.37,3.04640136]
[1730632290052,2.78,164.52,164.37,2.78]
[1730632290348,2.78,164.52,164.37,5.76319012]
[1730632292754,2.78,164.52,164.34,3.9571]
[1730632293145,2.78,164.52,164.35,2.78]
[1730632301156,2.78,164.51,164.35,2.78]
[1730632304660,2.78,164.5,164.35,2.78]
[1730632305859,2.78,164.49,164.35,2.78]
[1730632306060,2.78,164.48,164.35,2.78]
[1730632311657,2.78,164.49,164.35,2.78]
[1730632320063,4.0268,164.48,164.35,2.78]
[1730632320263,4.0268,164.48,164.36,2.78]
[1730632320464,4.0268,164.48,164.37,3.06879118]
[1730632323659,2.6922,164.48,164.36,2.78]
[1730632325574,1.3817,164.48,164.36,2.78]
[1730632328876,1.3799,164.53,164.36,2.78]
[1730632329072,2.78,164.52,164.36,2.78]
[1730632329677,2.78,164.51,164.36,2.78]
[1730632331667,2.78,164.51,164.36,3.51205331]
[1730632332681,2.78,164.51,164.37,1.11774221]
[1730632332881,2.78,164.51,164.37,3.00333307]
[1730632333183,2.78,164.51,164.36,3.51205331]
[1730632334882,2.78,164.51,164.37,3.0443913]
[1730632335074,2.78,164.51,164.38,2.78]
[1730632336787,2.78,164.51,164.37,51.11785314]
[1730632337980,2.78,164.51,164.37,54.09490093]
[1730632338683,2.78,164.5,164.37,54.09490093]
[1730632338886,2.78,164.51,164.37,54.09490093]
[1730632344598,1.3799,164.53,164.37,54.09490093]
[1730632344778,2.78,164.52,164.37,54.09490093]
[1730632346289,2.6731,164.54,164.38,1.11772649]
[1730632346496,2.78,164.54,164.38,1.11772649]
[1730632349490,2.78,164.54,164.39,1.11763011]
[1730632349690,41.06630901,164.56,164.4,4.0517]
[1730632349896,2.78,164.55,164.41,2.7526]
[1730632351509,0.18072697,164.51,164.41,2.7526]
[1730632352903,0.53053928,164.52,164.41,2.7526]
[1730632353097,0.53053928,164.52,164.41,3.7526]
[1730632353297,0.53053928,164.52,164.42,2.78]
[1730632354408,0.53053928,164.52,164.41,2.7526]
[1730632354704,0.53053928,164.52,164.43,2.78]
[1730632355491,0.53053928,164.52,164.41,2.7526]
[1730632355704,0.53053928,164.52,164.43,2.78]
[1730632356692,0.53053928,164.52,164.41,2.7526]
[1730632356892,0.53053928,164.52,164.42,2.78]
[1730632358299,0.53053928,164.52,164.41,2.7526]
[1730632358499,0.53053928,164.52,164.42,2.78]
[1730632359505,0.53053928,164.52,164.41,2.7526]
[1730632359704,0.53053928,164.52,164.42,2.78]
[1730632360505,0.53053928,164.52,164.41,2.7526]
[1730632360808,0.53053928,164.52,164.42,2.78]
[1730632367105,0.53053928,164.52,164.41,2.7526]
[1730632367409,0.53053928,164.52,164.41,5.5326]
[1730632368422,0.53053928,164.52,164.41,2.7526]
[1730632379623,0.53053928,164.52,164.42,2.78]
[1730632380815,0.53053928,164.52,164.41,2.7526]
[1730632381121,0.53053928,164.52,164.42,2.78]
[1730632384817,0.53053928,164.52,164.43,2.78]
[1730632402141,0.53053928,164.52,164.41,2.7526]
[1730632402336,0.53053928,164.52,164.42,2.76]
[1730632416053,0.53053928,164.52,164.43,1.0]
[1730632416846,0.68949586,164.54,164.43,19.27]
[1730632417055,2.48703544,164.59,164.44,1.1173987]
[1730632417350,2.48703544,164.59,164.43,19.27]
[1730632417546,2.48703544,164.59,164.44,1.11732344]
[1730632417751,2.48703544,164.59,164.45,4.87731903]
[1730632417959,2.48703544,164.59,164.45,1.0]
[1730632418156,2.48703544,164.59,164.46,2.76]
[1730632418358,2.48703544,164.59,164.47,1.3344]
[1730632418565,2.48703544,164.59,164.47,4.33091841]
[1730632418747,2.48703544,164.59,164.47,2.3344]
[1730632419054,2.48703544,164.59,164.48,2.76]
[1730632419259,2.48703544,164.59,164.47,5.39202221]
[1730632419557,2.48703544,164.59,164.48,2.76]
[1730632419759,2.48703544,164.59,164.48,5.79378077]
[1730632420261,2.48703544,164.59,164.49,1.0]
[1730632422249,2.48703544,164.59,164.5,2.6091]
[1730632430068,2.48703544,164.59,164.51,1.0]
[1730632430263,2.48703544,164.59,164.52,2.76]
[1730632430773,2.48703544,164.59,164.53,1.3342]
[1730632431574,2.48703544,164.59,164.54,2.76]
[1730632434170,2.48703544,164.59,164.55,2.76]
[1730632434871,2.48703544,164.59,164.53,1.3342]
[1730632435079,2.48703544,164.59,164.56,2.76]
[1730632439474,3.86463544,164.59,164.53,2.76]
[1730632445899,3.86463544,164.59,164.5,51.06682053]